Workbook

Sheet Sheet1
A1: Player | B1: Canyon Grove | C1: VSFC | D1: Antiquity | E1: Frontier Falls | F1: Pinball Arena 2k5 | G1: Black Jack | H1: Stronghold | I1: Electric Express | J1: Trepidation | K1: Facing Worlds | L1: Raw Points | M1: Event Points | N1: =A1 -> Player
A2: Blackrose | B2: =1*1.05*1.1 -> 1.155 | C2: =3*1.02*1.1*1.1*1.1 -> 4.07286 | D2: =2*1.01 -> 2.02 | E2: 0.02 | F2: =5*1.2 -> 6 | G2: =5*1.02*1.1*1.2 -> 6.732 | H2: =5*1.1 -> 5.5 | I2: =5*1.01*1.1*1.1*1.1 -> 6.72155 | J2: =5*1.02*1.4 -> 7.14 | K2: =2*1.02*1.1 -> 2.244 | L2: =SUM(B2:K2) -> 41.60541 | M2: =25*L2/41.60541 -> 25 | N2: =A2 -> Blackrose
A3: Ahmo | B3: =2*1.05*1.1 -> 2.31 | C3: =2*1.02 -> 2.04 | D3: =2*1.03*1.1*1.1 -> 2.4926 | E3: =1*1.03 -> 1.03 | F3: =5*1.03 -> 5.15 | G3: =5*1.03*1.1*1.1 -> 6.2315 | H3: =5*1.03*1.1 -> 5.665 | I3: =5*1.01*1.1 -> 5.555 | J3: =5*1.05*1.1 -> 5.775 | K3: =2*1.03 -> 2.06 | L3: =SUM(B3:K3) -> 38.3091 | M3: =25*L3/41.60541 -> 23 | N3: =A3 -> Ahmo
A4: PurpleJazz | B4: =2*1.04 -> 2.08 | C4: =3*1.02*1.1 -> 3.366 | D4: =2*1.02*1.1 -> 2.244 | E4: 0.01 | F4: =5*1.04*1.1*1.1 -> 6.292 | G4: =5*1.01*1.1 -> 5.555 | H4: 0 | I4: 5 | J4: =5*1.03 -> 5.15 | K4: =4*1.03*1.1*1.1 -> 4.9852 | L4: =SUM(B4:K4) -> 34.6822 | M4: 21 | N4: =A4 -> PurpleJazz
A5: Ahmed | B5: =1*1.01 -> 1.01 | C5: =3*1.04 -> 3.12 | D5: =2*1.02 -> 2.04 | E5: 0.03 | F5: =5*1.04*1.1*1.1 -> 6.292 | G5: 0.02 | H5: =5*1.06*1.4*1.1 -> 8.162 | I5: =5*1.01*1.1 -> 5.555 | J5: 1.01 | K5: =4*1.07 -> 4.28 | L5: =SUM(B5:K5) -> 31.519 | M5: 19 | N5: =A5 -> Ahmed
A6: Darkenoid | B6: =2*1.04*1.1 -> 2.288 | C6: =2*1.01 -> 2.02 | D6: =2*1.05 -> 2.1 | E6: =1*1.11*1.1 -> 1.221 | F6: =1*1.03 -> 1.03 | G6: 0.02 | H6: =5*1.02 -> 5.1 | I6: =5*1.1 -> 5.5 | J6: =5*1.02*1.1 -> 5.61 | K6: =4*1.1*1.1 -> 4.84 | L6: =SUM(B6:K6) -> 29.729 | M6: 18 | N6: =A6 -> Darkenoid
A7: DarkSonic | B7: =1*1.04 -> 1.04 | C7: =2*1.04*1.1 -> 2.288 | D7: =2*1.02*1.1 -> 2.244 | E7: =1*1.02 -> 1.02 | F7: =1*1.1 -> 1.1 | G7: =5*1.01*1.1 -> 5.555 | H7: 0 | I7: =5*1.01*1.1*1.1 -> 6.1105 | J7: =5*1.02*1.1 -> 5.61 | K7: =4*1.01 -> 4.04 | L7: =SUM(B7:K7) -> 29.0075 | M7: 17 | N7: =A7 -> DarkSonic
A8: Superjazz | B8: =2*1.02*1.1 -> 2.244 | C8: =3*1.01*1.1 -> 3.333 | D8: =2*1.11*1.1 -> 2.442 | E8: 0.04 | F8: =5*1.01*1.1 -> 5.555 | G8: =5*1.01*1.1 -> 5.555 | H8: =5*1.03 -> 5.15 | I8: 0 | J8: =1*1.03*1.1*1.1*1.1 -> 1.37093 | K8: =2*1.06 -> 2.12 | L8: =SUM(B8:K8) -> 27.80993 | M8: 17 | N8: =A8 -> Superjazz
A9: Loon | B9: =2*1.02*1.1 -> 2.244 | C9: =2*1.06*1.2 -> 2.544 | D9: =2*1.02 -> 2.04 | E9: 0.04 | F9: =5*1.02*1.2*1.1*1.1 -> 7.4052 | G9: 0.01 | H9: 0.01 | I9: =5*1.03*1.1*1.1 -> 6.2315 | J9: 1 | K9: =2*1.04*1.1 -> 2.288 | L9: =SUM(B9:K9) -> 23.8127 | M9: 14 | N9: =A9 -> Loon
A10: Slaz | B10: =2*1.01 -> 2.02 | C10: =3*1.02*1.2 -> 3.672 | D10: =2*1.01 -> 2.02 | E10: 0 | F10: =1*1.02 -> 1.02 | G10: =5*1.03*1.1 -> 5.665 | H10: 0.02 | I10: 0 | J10: =5*1.01 -> 5.05 | K10: =2*1.02*1.2 -> 2.448 | L10: =SUM(B10:K10) -> 21.915 | M10: 13 | N10: =A10 -> Slaz
A11: Riko | B11: 0 | C11: 0 | D11: 0 | E11: 0 | F11: =5*1.01 -> 5.05 | G11: =5*1.04*1.1 -> 5.72 | H11: =5*1.01*1.1 -> 5.555 | I11: 0.03 | J11: 1.01 | K11: =4*1.03 -> 4.12 | L11: =SUM(B11:K11) -> 21.485 | M11: 13 | N11: =A11 -> Riko
A12: Krzysiek | B12: =1*1.02 -> 1.02 | C12: =3*1.04 -> 3.12 | D12: =2*1.05*1.1 -> 2.31 | E12: =1*1.04 -> 1.04 | F12: =1*1.01 -> 1.01 | G12: 0.01 | H12: =5*1.2 -> 6 | I12: 0.01 | J12: 1 | K12: =4*1.08*1.2*1.1 -> 5.7024 | L12: =SUM(B12:K12) -> 21.2224 | M12: 13 | N12: =A12 -> Krzysiek
A13: Violet CLM | B13: =1*1.01 -> 1.01 | C13: =2*1.03 -> 2.06 | D13: =2*1.03 -> 2.06 | E13: =1*1.01 -> 1.01 | F13: =5*1.05 -> 5.25 | G13: 0.02 | H13: 0.01 | I13: 0 | J13: =1*1.01 -> 1.01 | K13: =4*1.02 -> 4.08 | L13: =SUM(B13:K13) -> 16.51 | M13: 10 | N13: =A13 -> Violet CLM
A14: Salamander | B14: 0 | C14: =2*1.01*1.1 -> 2.222 | D14: =2*1.02*1.1 -> 2.244 | E14: =1 -> 1 | F14: 1 | G14: 0 | H14: 0.02 | I14: 0 | J14: 0 | K14: 2 | L14: =SUM(B14:K14) -> 8.486 | M14: 5 | N14: =A14 -> Salamander
A15: Naps | B15: 0 | C15: 3 | D15: =2*1.03 -> 2.06 | E15: =1*1.03 -> 1.03 | F15: 1 | G15: 0 | H15: 0 | I15: 0 | J15: 0 | K15: 0 | L15: =SUM(B15:K15) -> 7.09 | M15: 4 | N15: =A15 -> Naps
A16: MasterSven | B16: 0 | C16: 0 | D16: 0 | E16: 0 | F16: 0 | G16: 0 | H16: 0 | I16: 0 | J16: =5*1.05*1.3 -> 6.825 | K16: 0 | L16: =SUM(B16:K16) -> 6.825 | M16: 4 | N16: =A16 -> MasterSven
A17: Blackeye | B17: =1*1.03*1.1 -> 1.133 | C17: =3*1.02 -> 3.06 | D17: 0 | E17: 0 | F17: 0 | G17: 0 | H17: 0 | I17: 0 | J17: 0 | K17: 0 | L17: =SUM(B17:K17) -> 4.193 | M17: 3 | N17: =A17 -> Blackeye
A18: z | B18: 0 | C18: =2*1.01 -> 2.02 | D18: 2 | E18: 0 | F18: 0 | G18: 0 | H18: 0 | I18: 0 | J18: 0 | K18: 0 | L18: =SUM(B18:K18) -> 4.02 | M18: 2 | N18: =A18 -> z
A19: Hordy | B19: 0 | C19: 2 | D19: 0 | E19: =1*1.02*1.1 -> 1.122 | F19: 0 | G19: 0 | H19: 0 | I19: 0 | J19: 0 | K19: 0 | L19: =SUM(B19:K19) -> 3.122 | M19: 2 | N19: =A19 -> Hordy
A20: Kyro | B20: 0 | C20: 0 | D20: 0 | E20: 0 | F20: 0 | G20: 0 | H20: 0 | I20: 0 | J20: 1.02 | K20: =2*1.01 -> 2.02 | L20: =SUM(B20:K20) -> 3.04 | M20: 2 | N20: =A20 -> Kyro
A21: Toni | B21: =2*1.02 -> 2.04 | C21: 0 | D21: 0 | E21: 0 | F21: 0 | G21: 0 | H21: 0 | I21: 0 | J21: 0 | K21: 0 | L21: =SUM(B21:K21) -> 2.04 | M21: 1 | N21: =A21 -> Toni
A22: Spaz20 | B22: =1*1.02 -> 1.02 | C22: 0 | D22: 0 | E22: 0.01 | F22: 0 | G22: 0 | H22: 0 | I22: 0 | J22: 0 | K22: 0 | L22: =SUM(B22:K22) -> 1.03 | M22: 1 | N22: =A22 -> Spaz20
